fUSD/lending_fUSD_20260111
["ID","MTS","AMOUNT","RATE_DAILY","PERIOD"]
[401322823,1768135841978,-174.1373823,0.00017997,2]
[401322824,1768135841988,-150.0,0.00017999,2]
[401322825,1768135841997,-166.9455236,0.00017999,2]
[401322826,1768135842007,-606518.2814613,0.00017999,2]
[401322827,1768135842016,-2891.3593542,0.00017999,2]
[401322828,1768135842025,-134846.2904721,0.00017999,2]
[401322829,1768135842034,-300.0,0.00017999,2]
[401322830,1768135842043,-6511.2522412,0.00017999,2]
[401322831,1768135842052,-1000.0,0.00017999,2]
[401322832,1768135842061,-1393.1032498,0.00017999,2]
[401322833,1768135842070,-300.0,0.00017999,2]
[401322834,1768135842079,-26874.4096813,0.00017999,2]
[401322835,1768135842089,-548.49326873,0.00017999,2]
[401322836,1768135842098,-300.0,0.00017999,2]
[401322837,1768135842107,-1622.8885288,0.00017999,2]
[401322838,1768135842116,-150.0,0.00018,2]
[401322839,1768135842126,-64331.77916122,0.00018,2]
[401322840,1768135842135,-1857038.56443815,0.00018,2]
[401322843,1768135844158,-151.0,0.00016546,2]
[401322844,1768135844168,-292526.05242171,0.00018,2]
[401322845,1768135844217,-1016.65390737,0.00018,2]
[401322846,1768135844273,-574.58590324,0.00018,2]
[401322870,1768135845578,-151.0,0.00016546,2]
[401322871,1768135845588,-1201.0,0.00018,2]
[401322872,1768135845600,-630.21210057,0.00018,2]
[401322873,1768135845639,-262.9,0.00018,2]
[401322874,1768135845651,-269.99999995,0.00018,2]
[401322875,1768135845693,-2158.21599559,0.00018,2]
[401322876,1768135845804,-3531.57347963,0.00018,2]
[401322879,1768135878339,215.00307905,0.00027397,120]
[401322889,1768136045847,159.94292393,0.00015444,2]
[401322892,1768136200514,10258.75382371,0.00015444,2]
[401322907,1768136802763,3240.0,0.00014904,2]
[401322908,1768136818025,3835.58,0.00014904,2]
[401322911,1768136905997,999.0,0.000149,3]
[401322912,1768136941235,166.66,0.00014154,2]
[401322913,1768136941437,166.66,0.00014452,2]
[401322914,1768136941635,166.66,0.0001475,2]
[401322917,1768137014120,-166.66,0.00015048,2]
[401322918,1768137014144,-57.73,0.00015197,2]
[401322921,1768137031706,-117.81834745,0.00015197,2]
[401322922,1768137031717,-166.66,0.00015346,2]
[401322923,1768137031727,-239.9,0.00015376,2]
[401322924,1768137031736,-1200.0,0.00015443,2]
[401322925,1768137031745,-150.0,0.00015443,2]
[401322926,1768137031755,-179.51993636,0.00015444,2]
[401322927,1768137031764,-10704.59530559,0.00015444,2]
[401322928,1768137031774,-14327.71104957,0.00015444,2]
[401322929,1768137031784,-150.0,0.00015498,2]
[401322930,1768137031794,-191.0,0.00015534,2]
[401322931,1768137031803,-202.27919226,0.00015535,2]
[401322932,1768137031813,-200.0,0.00015535,2]
[401322933,1768137031822,-151.0,0.00015535,2]
[401322934,1768137031832,-151.0,0.00015535,2]
[401322935,1768137031841,-151.0,0.00015535,2]
[401322936,1768137031851,-151.0,0.00015535,2]
[401322937,1768137031860,-151.0,0.00015535,2]
[401322938,1768137031870,-151.0,0.00015535,2]
[401322939,1768137031880,-235.01688217,0.00015535,2]
[401322940,1768137031889,-500.0,0.00015543,2]
[401322941,1768137031900,-423.55993187,0.00015543,2]
[401322942,1768137031910,-500.0,0.00015543,2]
[401322943,1768137031920,-500.0,0.00015543,2]
[401322944,1768137031930,-500.0,0.00015543,2]
[401322945,1768137031939,-500.0,0.00015543,2]
[401322946,1768137031949,-267.97470564,0.00015543,2]
[401322947,1768137031958,-150.0,0.00015543,2]
[401322948,1768137031968,-447.74203772,0.00015543,2]
[401322949,1768137031977,-500.0,0.00015543,2]
[401322950,1768137031987,-500.0,0.00015543,2]
[401322951,1768137031997,-1167.66845712,0.00015543,5]
[401322952,1768137032007,-500.0,0.00015543,2]
[401322953,1768137032016,-500.0,0.00015543,2]
[401322954,1768137032026,-500.0,0.00015543,2]
[401322955,1768137032035,-500.0,0.00015543,2]
[401322956,1768137032045,-500.0,0.00015543,2]
[401322957,1768137032054,-618.39502557,0.00015543,2]
[401322958,1768137032064,-500.0,0.00015543,2]
[401322959,1768137032074,-500.0,0.00015543,2]
[401322960,1768137032083,-500.0,0.00015543,2]
[401322961,1768137032092,-500.0,0.00015543,2]
[401322962,1768137032102,-500.0,0.00015543,2]
[401322964,1768137032112,-600.81,0.00015543,2]
[401322966,1768137032122,-535.89319473,0.00015543,2]
[401322968,1768137032131,-500.0,0.00015543,2]
[401322969,1768137032140,-519.66992392,0.00015543,2]
[401322970,1768137032149,-500.0,0.00015543,2]
[401322971,1768137032159,-500.0,0.00015543,2]
[401322972,1768137032168,-500.0,0.00015543,2]
[401322973,1768137032178,-500.0,0.00015543,2]
[401322974,1768137032187,-500.0,0.00015543,2]
[401322975,1768137032197,-500.0,0.00015543,2]
[401322976,1768137032206,-500.0,0.00015543,2]
[401322977,1768137032216,-500.0,0.00015543,2]
[401322978,1768137032227,-500.0,0.00015543,2]
[401322979,1768137032237,-320.87822696,0.00015543,2]
[401322980,1768137032248,-500.0,0.00015543,2]
[401322981,1768137032258,-500.0,0.00015543,2]
[401322982,1768137032268,-500.0,0.00015543,2]
[401322983,1768137032277,-500.0,0.00015543,2]
[401322984,1768137032287,-150.0,0.00015543,2]
[401322985,1768137032297,-500.0,0.00015543,5]
[401322986,1768137032307,-1000.0,0.00015544,2]
[401322987,1768137032317,-28752.3012,0.00015544,2]
[401322988,1768137032327,-150.0,0.00015553,2]
[401322989,1768137032340,-150.0,0.00015607,2]
[401322990,1768137032350,-3478.97,0.00015607,2]
[401322991,1768137032359,-500.0,0.00015643,2]
[401322992,1768137032369,-500.0,0.00015643,2]
[401322993,1768137032379,-615.06251518,0.00015643,2]
[401322994,1768137032389,-166.66,0.00015644,2]
[401322995,1768137032398,-150.0,0.00015662,2]
[401322996,1768137032407,-3709.65116184,0.00015715,2]
[401322997,1768137032420,-10704.59530557,0.00015717,2]
[401322998,1768137032429,-14327.71104955,0.00015717,2]
[401322999,1768137032438,-250.0,0.00015717,2]
[401323000,1768137032447,-199.19,0.00015794,2]
[401323001,1768137032457,-151.0,0.00015794,2]
[401323002,1768137032466,-151.0,0.00015796,2]
[401323003,1768137032476,-151.0,0.00015796,2]
[401323004,1768137032485,-500.0,0.00015798,2]
[401323005,1768137032494,-500.0,0.00015798,2]
[401323006,1768137032504,-500.0,0.00015798,2]
[401323007,1768137032513,-500.0,0.00015798,2]
[401323008,1768137032522,-512.90817352,0.00015898,2]
[401323009,1768137032532,-500.0,0.00015898,2]
[401323010,1768137032541,-500.0,0.00015899,2]
[401323011,1768137032550,-500.0,0.00015899,2]
[401323012,1768137032560,-288.8563921,0.00015899,2]
[401323013,1768137032569,-1582.26724734,0.000159,2]
[401323014,1768137032579,-1582.26724729,0.000159,2]
[401323015,1768137032588,-1582.26724729,0.000159,2]
[401323016,1768137032597,-1582.26724729,0.000159,2]
[401323017,1768137032607,-1582.26724729,0.000159,2]
[401323018,1768137032616,-1582.26724729,0.000159,2]
[401323019,1768137032626,-35615.52851408,0.00015983,2]
[401323020,1768137032635,-10704.59530557,0.0001599,2]
[401323021,1768137032645,-14327.71104955,0.0001599,2]
[401323022,1768137032654,-500.0,0.00016027,2]
[401323023,1768137032663,-9999.99,0.00016116,2]
[401323024,1768137032672,-150.99,0.00016116,2]
[401323025,1768137032682,-955.94,0.00016116,2]
[401323026,1768137032692,-150.0,0.000162,2]
[401323027,1768137032701,-150.0,0.000162,2]
[401323028,1768137032711,-150.0,0.000162,2]
[401323029,1768137032720,-150.0,0.000162,2]
[401323030,1768137032730,-150.0,0.000162,2]
[401323031,1768137032739,-150.0,0.000162,2]
[401323032,1768137032748,-150.0,0.000162,2]
[401323033,1768137032758,-150.0,0.000162,2]
[401323034,1768137032769,-150.0,0.000162,2]
[401323035,1768137032779,-150.0,0.000162,2]
[401323036,1768137032788,-150.0,0.000162,2]
[401323037,1768137032797,-239.9,0.0001623,2]
[401323038,1768137032807,-10704.59530557,0.00016263,2]
[401323039,1768137032817,-14327.71104955,0.00016263,2]
[401323040,1768137032827,-150.0,0.0001629,2]
[401323041,1768137032836,-150.0,0.00016306,2]
[401323042,1768137032846,-150.0,0.00016329,2]
[401323043,1768137032856,-150.0,0.00016364,2]
[401323044,1768137033209,-150.0,0.0001638,2]
[401323045,1768137033248,-150.0,0.0001638,2]
[401323046,1768137033258,-276.0,0.00016384,2]
[401323047,1768137033268,-3478.97,0.00016388,2]
[401323048,1768137033279,-150.0,0.00016412,2]
[401323049,1768137033290,-150.0,0.00016425,2]
[401323050,1768137033299,-888.0,0.00016438,2]
[401323051,1768137033310,-150.0,0.00016457,2]
[401323052,1768137033320,-150.0,0.0001647,2]
[401323053,1768137033330,-150.0,0.00016518,2]
[401323054,1768137033342,-150.0,0.00016527,2]
[401323055,1768137033352,-1393.62447699,0.00016536,2]
[401323056,1768137033365,-7955.44966696,0.00016536,2]
[401323057,1768137033376,-1355.52116162,0.00016536,2]
[401323058,1768137033386,-7999.25292431,0.00016536,2]
[401323059,1768137033430,-689.16136204,0.00016536,2]
[401323060,1768137033442,-336.22313328,0.00016536,2]
[401323061,1768137033462,-650.413,0.00016536,2]
[401323062,1768137033472,-574.6,0.00016536,2]
[401323063,1768137033483,-2768.24648904,0.00016536,2]
[401323064,1768137033525,-458.44747329,0.00016536,2]
[401323065,1768137033537,-851.36666759,0.00016536,2]
[401323066,1768137033548,-300.0,0.00016553,2]
[401323067,1768137033558,-150.0,0.0001656,2]
[401323068,1768137033567,-150.0,0.0001656,2]
[401323069,1768137033577,-150.0,0.00016586,2]
[401323070,1768137033587,-274.89,0.00016623,2]
[401323071,1768137033599,-150.0,0.00016624,2]
[401323072,1768137033609,-1205.0417172,0.00016635,2]
[401323073,1768137033619,-150.0,0.0001665,2]
[401323074,1768137033628,-150.0,0.0001665,2]
[401323075,1768137033638,-150.0,0.00016691,2]
[401323076,1768137033648,-9957.73568052,0.00016707,2]
[401323077,1768137033660,-500.3046,0.00016707,2]
[401323079,1768137038177,-306.23050185,0.00016707,2]
[401323082,1768137038200,-415.15147597,0.00016707,2]
[401323084,1768137038210,-300.6,0.00016707,2]
[401323087,1768137038230,-1443.64774166,0.00016707,2]
[401323089,1768137038239,-150.0,0.00016714,2]
[401323091,1768137038249,-150.0,0.00016729,2]
[401323093,1768137038259,-150.0,0.0001674,2]
[401323095,1768137038268,-150.0,0.0001674,2]
[401323097,1768137038277,-159.94292391,0.00016768,2]
[401323099,1768137038287,-150.0,0.000168,2]
[401323101,1768137038296,-150.0,0.000168,2]
[401323103,1768137038305,-150.0,0.000168,2]
[401323105,1768137038315,-150.0,0.000168,2]
[401323107,1768137038324,-111.7411133,0.00016808,2]
[401323278,1768137040035,-348.83917724,0.00016808,2]
[401323279,1768137040045,-500.0,0.00016808,2]
[401323282,1768137040055,-500.0,0.00016808,2]
[401323284,1768137040065,-409.51044567,0.00016808,2]
[401323285,1768137040074,-10704.59530557,0.00016808,2]
[401323287,1768137040083,-14327.71104955,0.00016808,2]
[401323290,1768137040093,-1233.68609721,0.00016827,2]
[401323292,1768137040103,-150.0,0.0001683,2]
[401323294,1768137040114,-150.0,0.00016835,2]
[401323296,1768137040124,-150.0,0.00016843,2]
[401323297,1768137040134,-150.0,0.00016855,2]
[401323299,1768137040144,-5217.6228999,0.00016863,2]
[401323302,1768137040155,-571.39318548,0.00016863,2]
[401323304,1768137040167,-7882.11391462,0.00016863,2]
[401323306,1768137040176,-9178.0,0.00016868,2]
[401323308,1768137040184,-150.0,0.00016875,2]
[401323310,1768137040194,-600.0,0.00016914,2]
[401323312,1768137040203,-295.14499999,0.00016914,2]
[401323314,1768137040212,-600.0,0.00016914,2]
[401323316,1768137040221,-250.0,0.00016914,2]
[401323318,1768137040231,-300.0,0.00016914,2]
[401323320,1768137040241,-150.0,0.0001692,2]
[401323322,1768137040251,-150.0,0.0001692,2]
[401323324,1768137040260,-150.0,0.00016941,2]
[401323326,1768137040270,-279.84902475,0.0001695,2]
[401323328,1768137040279,-150.0,0.00016971,2]
[401323330,1768137040288,-1680.0,0.00016979,2]
[401323332,1768137040297,-150.0,0.0001701,2]
[401323334,1768137040307,-150.0,0.00017018,2]
[401323336,1768137040316,-150.0,0.00017047,2]
[401323338,1768137040326,-500.0,0.00017073,2]
[401323340,1768137040337,-500.0,0.00017073,2]
[401323342,1768137040351,-500.0,0.00017073,2]
[401323344,1768137040360,-500.0,0.00017073,2]
[401323346,1768137040369,-3071.58880479,0.00017081,2]
[401323350,1768137040395,-2418.0,0.00017081,2]
[401323352,1768137040410,-5215.00650078,0.00017081,2]
[401323354,1768137040419,-14327.71104955,0.00017081,2]
[401323356,1768137040428,-239.9,0.00017084,2]
[401323358,1768137040437,-322.6107,0.00017099,2]
[401323360,1768137040446,-578.20924308,0.00017099,2]
[401323363,1768137040456,-620.0,0.00017099,2]
[401323365,1768137040465,-553.64373807,0.00017099,2]
[401323367,1768137040474,-150.0,0.000171,2]
[401323368,1768137040483,-150.0,0.000171,2]
[401323371,1768137040492,-150.0,0.000171,2]
[401323372,1768137040501,-150.0,0.000171,2]
[401323374,1768137040511,-150.0,0.00017153,2]
[401323377,1768137040520,-200.0,0.00017163,2]
[401323378,1768137040529,-3478.97,0.00017168,2]
[401323380,1768137040538,-150.0,0.00017182,2]
[401323382,1768137040548,-150.0,0.0001719,2]
[401323385,1768137040558,-787.0,0.00017197,2]
[401323386,1768137040567,-150.0,0.00017229,2]
[401323388,1768137040576,-166.68,0.00017232,2]
[401323390,1768137040586,-150.0,0.00017259,2]
[401323392,1768137040595,-150.0,0.0001728,2]
[401323395,1768137040604,-150.0,0.0001728,2]
[401323397,1768137040615,-150.0,0.00017325,2]
[401323398,1768137040624,-150.0,0.00017345,2]
[401323401,1768137040634,-10704.59530557,0.00017354,2]
[401323402,1768137040643,-14327.71104955,0.00017354,2]
[401323405,1768137040653,-150.0,0.00017357,2]
[401323406,1768137040662,-787.0,0.00017362,2]
[401323409,1768137040671,-150.0,0.00017365,2]
[401323410,1768137040680,-150.0,0.0001737,2]
[401323412,1768137040689,-150.0,0.00017378,2]
[401323414,1768137040698,-150.0,0.00017378,2]
[401323416,1768137040707,-150.0,0.00017378,2]
[401323418,1768137040716,-150.0,0.00017378,2]
[401323420,1768137040726,-150.0,0.00017378,2]
[401323423,1768137040735,-150.0,0.000174,2]
[401323425,1768137040744,-150.0,0.000174,2]
[401323426,1768137040754,-150.0,0.000174,2]
[401323429,1768137040764,-150.0,0.000174,2]
[401323431,1768137040772,-188.0,0.00017425,2]
[401323433,1768137040782,-358.38,0.0001744,2]
[401323434,1768137040791,-1124.98,0.0001744,2]
[401323437,1768137040800,-171.45,0.0001744,2]
[401323439,1768137040810,-150.0,0.0001746,2]
[401323441,1768137040819,-150.0,0.0001746,2]
[401323443,1768137040828,-150.0,0.00017471,2]
[401323445,1768137040838,-150.0,0.00017486,2]
[401323447,1768137040846,-2000.0,0.000175,2]
[401323449,1768137040855,-150.0,0.00017509,2]
[401323451,1768137040865,-787.0,0.00017533,2]
[401323452,1768137040874,-150.0,0.0001755,2]
[401323455,1768137040883,-150.0,0.0001755,2]
[401323457,1768137040892,-787.0,0.00017565,2]
[401323458,1768137040902,-150.0,0.00017576,2]
[401323461,1768137040911,-1000.0,0.000176,2]
[401323463,1768137040921,-150.0,0.00017614,2]
[401323465,1768137040931,-1000.0,0.00017621,2]
[401323466,1768137040940,-243.38858154,0.00017621,2]
[401323469,1768137040950,-1000.0,0.00017621,2]
[401323471,1768137040959,-1002.55051193,0.00017621,2]
[401323473,1768137040971,-10704.59530557,0.00017627,2]
[401323475,1768137040980,-14327.71104955,0.00017627,2]
[401323477,1768137040990,-150.0,0.0001764,2]
[401323479,1768137040999,-150.0,0.0001764,2]
[401323481,1768137041008,-2188.27062992,0.0001764,2]
[401323482,1768137041017,-168.0,0.00017643,2]
[401323484,1768137041026,-574.12855637,0.00017647,2]
[401323486,1768137041035,-150.0,0.00017673,2]
[401323488,1768137041044,-2357.0,0.00017673,2]
[401323490,1768137041053,-2357.0,0.00017673,2]
[401323492,1768137041063,-150.0,0.00017682,2]
[401323494,1768137041072,-787.0,0.00017689,2]
[401323496,1768137041082,-2437.0,0.0001769,2]
[401323498,1768137041091,-4820.0,0.0001769,2]
[401323500,1768137041100,-566.0,0.0001772,2]
[401323502,1768137041109,-787.0,0.00017729,2]
[401323504,1768137041119,-150.0,0.0001773,2]
[401323507,1768137041128,-1000.0,0.00017731,2]
[401323509,1768137041137,-1000.0,0.00017732,2]
[401323510,1768137041147,-1000.0,0.00017738,2]
[401323512,1768137041157,-150.0,0.00017743,2]
[401323514,1768137041166,-616.50589084,0.00017744,2]
[401323516,1768137041175,-1000.0,0.0001776,2]
[401323519,1768137041184,-150.0,0.00017775,2]
[401323520,1768137041194,-174.1373823,0.00017775,2]
[401323523,1768137041203,-1000.0,0.00017784,2]
[401323524,1768137041212,-1000.0,0.00017787,2]
[401323526,1768137041222,-150.0,0.00017788,2]
[401323528,1768137041231,-1000.0,0.00017797,2]
[401323531,1768137041241,-1000.0,0.000178,2]
[401323533,1768137041250,-1000.0,0.00017805,2]
[401323535,1768137041259,-165.213,0.00017808,2]
[401323536,1768137041268,-1182.704,0.00017808,2]
[401323538,1768137041277,-1000.0,0.00017817,2]
[401323540,1768137041286,-1000.0,0.00017818,2]
[401323543,1768137041296,-150.0,0.0001782,2]
[401323545,1768137041305,-150.0,0.0001782,2]
[401323547,1768137041315,-586.48019,0.0001782,2]
[401323549,1768137041324,-586.48019,0.0001782,2]
[401323551,1768137041333,-1000.0,0.00017829,2]
[401323553,1768137041346,-1000.0,0.00017829,2]
[401323554,1768137041356,-2201.92484839,0.0001783,2]
[401323557,1768137041365,-586.48019,0.0001783,2]
[401323559,1768137041375,-1000.0,0.00017835,2]
[401323561,1768137041385,-150.0,0.00017836,2]
[401323562,1768137041395,-1000.0,0.00017838,2]
[401323564,1768137041404,-1000.0,0.0001784,2]
[401323566,1768137041414,-200.0,0.00017856,2]
[401323568,1768137041425,-586.48019,0.0001786,2]
[401323570,1768137041434,-1000.0,0.00017862,2]
[401323572,1768137041443,-1000.0,0.00017867,2]
[401323574,1768137041452,-1000.0,0.0001787,2]
[401323576,1768137041462,-150.0,0.00017871,2]
[401323579,1768137041471,-1000.0,0.00017879,2]
[401323581,1768137041481,-586.48019,0.0001788,2]
[401323583,1768137041490,-1000.0,0.00017881,2]
[401323585,1768137041499,-1000.0,0.00017884,2]
[401323587,1768137041509,-1000.0,0.00017889,2]
[401323589,1768137041518,-25000.0,0.00017891,3]
[401323591,1768137041527,-150.0,0.00017894,2]
[401323593,1768137041536,-182.01,0.00017895,2]
[401323595,1768137041546,-1000.0,0.00017897,2]
[401323597,1768137041555,-500.0,0.00017899,2]
[401323599,1768137041564,-437.58562247,0.00017899,2]
[401323601,1768137041573,-150.13206296,0.00017899,2]
[401323603,1768137041582,-177.16136204,0.00017899,2]
[401323605,1768137041592,-150.13206295,0.000179,2]
[401323607,1768137041601,-25000.0,0.000179,3]
[401323609,1768137041611,-10000.0,0.000179,2]
[401323611,1768137041620,-22054.87285308,0.000179,3]
[401323613,1768137041629,-179.51993635,0.000179,2]
[401323615,1768137041638,-1000.0,0.000179,2]
[401323617,1768137041648,-10704.59530557,0.000179,2]
[401323619,1768137041657,-250.07515938,0.000179,2]
[401323621,1768137041666,-250.07515938,0.000179,2]
[401323623,1768137041675,-250.07515938,0.000179,2]
[401323625,1768137041684,-250.07515938,0.000179,2]
[401323627,1768137041693,-250.07515938,0.000179,2]
[401323629,1768137041702,-250.07515938,0.000179,2]
[401323631,1768137041711,-250.07515938,0.000179,2]
[401323633,1768137041720,-250.07515938,0.000179,2]
[401323635,1768137041729,-250.07515938,0.000179,2]
[401323637,1768137041738,-250.07515938,0.000179,2]
[401323639,1768137041747,-250.07515938,0.000179,2]
[401323641,1768137041756,-2005.15405585,0.000179,2]
[401323643,1768137041766,-5719.4937703,0.000179,2]
[401323645,1768137041775,-611.19988954,0.000179,3]
[401323647,1768137041785,-150.13206295,0.000179,2]
[401323649,1768137041794,-14327.71104955,0.000179,2]
[401323651,1768137041803,-159.94292391,0.000179,2]
[401323653,1768137041812,-918.90149509,0.000179,2]
[401323655,1768137041822,-150.0,0.0001791,2]
[401323657,1768137041831,-586.48019,0.0001791,2]
[401323659,1768137041840,-158.1,0.00017914,2]
[401323661,1768137041849,-1000.0,0.00017916,2]
[401323663,1768137041858,-1000.0,0.00017919,2]
[401323665,1768137041868,-1000.0,0.0001792,2]
[401323667,1768137041877,-1000.0,0.00017922,2]
[401323669,1768137041886,-1000.0,0.00017923,2]
[401323671,1768137041895,-1000.0,0.00017925,2]
[401323673,1768137041904,-239.9,0.00017939,2]
[401323675,1768137041914,-1000.0,0.0001794,2]
[401323677,1768137041924,-3478.97,0.00017949,2]
[401323679,1768137041933,-1000.0,0.00017957,2]
[401323681,1768137041941,-500.0,0.00017973,2]
[401323683,1768137041951,-500.0,0.00017973,2]
[401323685,1768137041960,-500.0,0.00017973,2]
[401323687,1768137041969,-500.0,0.00017973,2]
[401323689,1768137041978,-500.0,0.00017973,2]
[401323691,1768137041987,-500.0,0.00017973,2]
[401323693,1768137041996,-500.0,0.00017973,2]
[401323695,1768137042005,-500.0,0.00017973,2]
[401323697,1768137042014,-500.0,0.00017973,2]
[401323698,1768137042023,-500.0,0.00017973,2]
[401323700,1768137042033,-500.0,0.00017973,2]
[401323702,1768137042042,-500.0,0.00017973,2]
[401323704,1768137042052,-380.05360747,0.00017973,2]
[401323705,1768137042061,-500.0,0.00017973,2]
[401323706,1768137042070,-500.0,0.00017973,2]
[401323707,1768137042079,-500.0,0.00017973,2]
[401323708,1768137042088,-580.06004034,0.00017973,2]
[401323709,1768137042098,-498.39272947,0.00017973,2]
[401323710,1768137042107,-500.0,0.00017973,2]
[401323711,1768137042116,-500.0,0.00017973,2]
[401323712,1768137042126,-500.0,0.00017973,2]
[401323713,1768137042135,-1654.85,0.00017973,2]
[401323715,1768137042144,-1000.0,0.00017983,2]
[401323717,1768137042154,-1031.97148382,0.00017989,2]
[401323719,1768137042163,-1031.97148382,0.0001799,2]
[401323721,1768137042172,-1031.97148382,0.0001799,2]
[401323723,1768137042182,-500.0,0.00017998,2]
[401323725,1768137042191,-500.0,0.00017998,2]
[401323727,1768137042201,-500.0,0.00017998,2]
[401323729,1768137042210,-1000.0,0.00017998,2]
[401323731,1768137042219,-150.0,0.00017999,2]
[401323733,1768137042229,-166.9455236,0.00017999,2]
[401323735,1768137042239,-35586.2563857,0.00017999,2]
[401323737,1768137042248,-650374.4025601,0.00017999,2]
[401323739,1768137042258,-5638.2316135,0.00017999,2]
[401323741,1768137042268,-2400.6691057,0.00017999,2]
[401323743,1768137042276,-300.0,0.00017999,2]
[401323745,1768137042285,-500.0,0.00017999,2]
[401323747,1768137042294,-500.0,0.00017999,2]
[401323749,1768137042303,-500.0,0.00017999,2]
[401323751,1768137042312,-500.0,0.00017999,2]
[401323753,1768137042321,-500.0,0.00017999,2]
[401323755,1768137042330,-500.0,0.00017999,2]
[401323757,1768137042339,-500.0,0.00017999,2]
[401323759,1768137042347,-500.0,0.00017999,2]
[401323761,1768137042359,-500.0,0.00017999,2]
[401323762,1768137042369,-395.65252229,0.00017999,2]
[401323765,1768137042379,-130039.3181212,0.00017999,2]
[401323766,1768137042388,-373.155,0.00017999,2]
[401323769,1768137042399,-300.0,0.00017999,2]
[401323771,1768137042408,-28911.4445518,0.00017999,2]
[401323772,1768137042418,-5928.2666183,0.00017999,2]
[401323774,1768137042427,-300.0,0.00017999,2]
[401323776,1768137042436,-548.49326873,0.00017999,2]
[401323778,1768137042445,-300.0,0.00017999,2]
[401323780,1768137042455,-641.60244697,0.00017999,2]
[401323782,1768137042464,-272.63958443,0.00017999,2]
[401323784,1768137042473,-286.04821059,0.00018,2]
[401323786,1768137042483,-154.34791437,0.00018,2]
[401323789,1768137042492,-151.06129178,0.00018,2]
[401323791,1768137042501,-274.86810546,0.00018,2]
[401323792,1768137042511,-150.25672752,0.00018,2]
[401323795,1768137042520,-156.68286018,0.00018,2]
[401323796,1768137042530,-178.176763,0.00018,2]
[401323798,1768137042539,-156.26952807,0.00018,2]
[401323800,1768137042548,-236.87153921,0.00018,2]
[401323803,1768137042558,-247.12115075,0.00018,2]
[401323804,1768137042567,-164.64727615,0.00018,2]
[401323806,1768137042576,-2789422.47728095,0.00018,2]
[401323826,1768137042715,-4133.84343981,0.00018,2]
[401323829,1768137042725,-9571.77246531,0.00018,2]
[401323831,1768137042736,-525.6540656,0.00018,2]
[401323999,1768137044386,-151.0,0.00016216,2]
[401324002,1768137044397,-375.165985,0.0001772,2]
[401324008,1768137044441,-531.776735,0.0001772,2]
[401324010,1768137044452,-5648.05728,0.0001772,2]
[401324012,1768137044463,-113077.39886013,0.00018,2]
[401324017,1768137044497,-151.0,0.00016216,2]
[401324019,1768137044506,-22589.26261989,0.00018,2]
[401324075,1768137045025,-129413.54921158,0.00018,2]
[401324077,1768137045037,-2799.58221255,0.00018,2]
[401324117,1768137045416,-22251.86108931,0.00018,2]
[401324119,1768137045428,-613888.99534984,0.00018,2]
[401324167,1768137045853,-1220.18035232,0.00018,2]
[401324169,1768137045969,-35558.8139689,0.00018,2]
[401324170,1768137045980,-1227.7064792,0.00018,2]
[401324656,1768137479410,155.89,8.546e-05,2]
[401324657,1768137562452,151.0,0.00027397,120]
[401324658,1768137579695,151.0,0.00027397,120]
[401324667,1768137645969,151.0,0.00027397,120]
[401324668,1768137657161,151.0,0.00027397,120]
[401324669,1768137740573,151.0,0.00027397,120]